bitfinex-derivatives/quotes_BTCF0:USTF0_20260118
["timestamp","ask_amount","ask_price","bid_price","bid_amount"]
[1768780319024,0.15573082,94050.0,94021.0,0.10637053]
[1768780319214,0.06,94050.0,94024.0,0.09729774]
[1768780319416,0.06,94050.0,94023.0,0.10881404]
[1768780319417,0.09573082,94070.0,94033.0,0.10793574]
[1768780319624,0.18573082,94070.0,94035.0,0.09729774]
[1768780319919,0.09,94070.0,94042.0,0.09729774]
[1768780320124,0.18573082,94070.0,94033.0,0.09729774]
[1768780320326,0.09573082,94060.0,94024.0,0.010639]
[1768780320523,0.10636582,94058.0,94025.0,0.10632359]
[1768780320723,0.10636582,94058.0,94026.0,0.0958]
[1768780320724,0.09573082,94045.0,94026.0,0.0958]
[1768780320918,0.09573082,94044.0,94008.0,0.010641]
[1768780321120,0.09573082,94044.0,94023.0,0.10633603]
[1768780321326,0.0958,94052.0,94024.0,0.0958]
[1768780321517,0.1458,94052.0,94025.0,0.0958]
[1768780321826,0.09573082,94042.0,94015.0,0.22704311]
[1768780322027,0.14573082,94042.0,94016.0,0.0958]
[1768780322216,0.14573082,94042.0,94016.0,0.20213942]
[1768780322418,0.14573082,94042.0,94016.0,0.0958]
[1768780322610,0.14573082,94042.0,94017.0,0.0958]
[1768780322811,0.14573082,94042.0,94017.0,0.20213942]
[1768780323016,0.14573082,94042.0,94017.0,0.0958]
[1768780323525,0.010637,94041.0,94018.0,0.1063496]
[1768780323723,0.01,94041.0,94018.0,0.1063496]
[1768780323922,0.21949888,94041.0,94009.0,0.00010167]
[1768780324127,0.09573082,94038.0,94010.0,0.0958]
[1768780324426,0.09573082,94034.0,94010.0,0.0958]
[1768780324626,0.09573082,94033.0,94010.0,0.0958]
[1768780324827,0.20949888,94030.0,94009.0,0.00010167]
[1768780325030,0.09573082,94019.0,93993.0,0.0958]
[1768780325232,0.01064,94018.0,93993.0,0.0958]
[1768780325422,0.15637082,94018.0,93997.0,0.10635865]
[1768780325626,0.09573082,94017.0,93993.0,0.0958]
[1768780325928,0.01074167,94016.0,93993.0,0.0958]
[1768780326230,0.10637082,94010.0,93986.0,0.0958]
[1768780326434,0.0958,94009.0,93982.0,0.0958]
[1768780326724,0.010641,94004.0,93982.0,0.0958]
[1768780326930,0.14573082,94004.0,93982.0,0.0958]
[1768780327134,0.010641,94003.0,93982.0,0.0958]
[1768780327339,0.15637182,94003.0,93972.0,0.0958]
[1768780327631,0.0958,94002.0,93979.0,0.010644]
[1768780327826,0.1458,94002.0,93979.0,0.010644]
[1768780328031,0.1458,94002.0,93974.0,0.010644]
[1768780328230,0.1458,94002.0,93980.0,0.10639373]
[1768780328434,0.05,94002.0,93974.0,0.010644]
[1768780328628,0.0958,94001.0,93974.0,0.010644]
[1768780328837,0.0958,94001.0,93972.0,0.0958]
[1768780328838,0.0958,94000.0,93980.0,0.010644]
[1768780329029,0.1458,94000.0,93977.0,0.09729774]
[1768780329429,0.1458,94000.0,93982.0,0.010644]
[1768780329627,0.09573082,94013.0,93985.0,0.010643]
[1768780329928,0.09573082,94011.0,93979.0,0.09729774]
[1768780330132,0.09573082,94007.0,93973.0,0.01202711]
[1768780330321,0.14573082,94007.0,93979.0,0.10638411]
[1768780330527,0.09573082,93955.0,93933.0,0.0958]
[1768780330832,0.10637782,93950.0,93924.0,0.0958]
[1768780331025,0.010648,93943.0,93919.0,0.10638411]
[1768780331224,0.010648,93943.0,93917.0,0.0958]
[1768780331225,0.060648,93943.0,93917.0,0.0958]
[1768780331629,8.321e-05,93942.0,93917.0,0.0958]
[1768780331939,0.010649,93937.0,93917.0,0.0958]
[1768780332131,0.01065,93930.0,93917.0,0.0958]
[1768780332340,0.09573082,93934.0,93917.0,0.0958]
[1768780332523,0.14573082,93934.0,93917.0,0.0958]
[1768780334338,0.00015962,93939.0,93917.0,0.0958]
[1768780334535,0.010646,93959.0,93922.0,0.20611178]
[1768780334853,0.010647,93954.0,93926.0,0.09729774]
[1768780335135,0.09573082,93961.0,93926.0,0.09729774]
[1768780335336,0.010648,93945.0,93927.0,0.0958]
[1768780335529,0.09584595,93944.0,93916.0,0.00015962]
[1768780335725,0.010648,93943.0,93917.0,0.0958]
[1768780335926,0.010648,93939.0,93917.0,0.10645035]
[1768780336126,0.10649395,93944.0,93921.0,0.00015962]
[1768780336336,0.16649395,93944.0,93922.0,0.0958]
[1768780336536,0.010649,93938.0,93922.0,0.0958]
[1768780336734,0.010649,93938.0,93921.0,0.00015962]
[1768780336925,0.010649,93938.0,93922.0,0.0958]
[1768780337130,0.010649,93938.0,93922.0,0.10646225]
[1768780337438,0.010648,93942.0,93923.0,0.0958]
[1768780337639,0.09584595,93944.0,93921.0,0.00015962]
[1768780337839,0.09584595,93944.0,93917.0,0.0958]
[1768780337840,0.09573082,93937.0,93917.0,0.0958]
[1768780338038,0.01065,93926.0,93900.0,0.09729774]
[1768780338237,0.01065,93926.0,93906.0,0.10645942]
[1768780338440,0.09573082,93937.0,93901.0,0.0958]
[1768780338634,0.010649,93931.0,93902.0,0.09729774]
[1768780338832,0.010649,93931.0,93902.0,0.20375716]
[1768780339028,0.0958,93940.0,93905.0,0.20611178]
[1768780339244,0.1458,93940.0,93909.0,0.09729774]
[1768780339445,0.010648,93939.0,93909.0,0.09729774]
[1768780339745,0.060648,93939.0,93910.0,0.10647756]
[1768780339937,0.010648,93939.0,93910.0,0.10647756]
[1768780340132,0.01076313,93944.0,93912.0,0.20611178]
[1768780340338,0.06076313,93944.0,93914.0,0.09729774]
[1768780340545,0.00011513,93944.0,93915.0,0.09729774]
[1768780340837,0.00011513,93944.0,93916.0,0.09729774]
[1768780341242,0.09573082,93929.0,93893.0,0.10795174]
[1768780341432,0.24157082,93929.0,93900.0,0.09584]
[1768780341633,0.01065,93923.0,93900.0,0.09584]
[1768780342034,0.010651,93920.0,93900.0,0.09584]
[1768780342231,8.534e-05,93919.0,93901.0,0.10648323]
[1768780342437,0.09334233,93917.0,93881.0,0.09789692]
[1768780342652,0.010653,93898.0,93880.0,0.09591742]
[1768780342830,0.060653,93898.0,93881.0,0.10648323]
[1768780343030,0.05,93898.0,93880.0,7.742e-05]
[1768780343236,0.09334233,93894.0,93868.0,0.09584]
[1768780343543,0.010654,93888.0,93868.0,0.09584]
[1768780343743,0.060654,93888.0,93868.0,0.09584]
[1768780344046,0.010654,93893.0,93868.0,0.09584]
[1768780344251,0.060654,93893.0,93869.0,0.10652122]
[1768780344739,0.010654,93890.0,93869.0,0.10652122]
[1768780344941,0.21196274,93877.0,93826.0,0.11654808]
[1768780345138,0.12147691,93844.0,93826.0,0.09584]
[1768780345339,0.09334233,93849.0,93826.0,0.09584]
[1768780345642,0.09334233,93872.0,93831.0,0.09789692]
[1768780345842,0.15334233,93872.0,93831.0,0.09789692]
[1768780346038,0.15334233,93872.0,93830.0,0.12147691]
[1768780346039,0.010656,93871.0,93835.0,0.09789692]
[1768780346240,0.010656,93871.0,93826.0,0.09584]
[1768780346241,0.00011488,93870.0,93841.0,0.09789692]
[1768780346450,0.00011488,93870.0,93832.0,0.22104777]
[1768780346451,0.05011488,93870.0,93832.0,0.21239339]
[1768780346635,0.05011488,93870.0,93834.0,0.09789692]
[1768780346636,0.010656,93868.0,93834.0,0.09789692]
[1768780346836,0.010656,93869.0,93842.0,0.1065513]
[1768780347031,0.070656,93869.0,93835.0,0.09789692]
[1768780347337,0.0001598,93860.0,93837.0,0.09789692]
[1768780347845,0.0001598,93860.0,93838.0,1.3868]
[1768780348045,0.0001598,93860.0,93840.0,0.12147691]
[1768780348248,0.0001598,93860.0,93841.0,0.09789692]
[1768780348753,0.0001598,93860.0,93843.0,0.09789692]
[1768780349144,0.0001598,93860.0,93844.0,1.38692]
[1768780349450,0.00011488,93870.0,93844.0,1.49347244]
[1768780349750,0.00011488,93870.0,93844.0,1.59136936]
[1768780350252,0.01077088,93870.0,93844.0,1.59136936]
[1768780351244,0.00011488,93870.0,93844.0,1.59136936]
[1768780351444,0.00011488,93870.0,93845.0,0.09789692]
[1768780351648,0.00011488,93870.0,93846.0,1.38716]
[1768780352039,0.05011488,93870.0,93846.0,1.38716]
[1768780352240,0.00011488,93870.0,93846.0,1.38716]
[1768780352439,0.00011488,93870.0,93847.0,1.29136]
[1768780352641,0.010656,93869.0,93847.0,1.38724]
[1768780352836,0.00011488,93870.0,93847.0,1.38724]
[1768780353442,0.00011488,93870.0,93845.0,0.09789692]
[1768780353650,0.00011488,93870.0,93848.0,1.2914]
[1768780353852,0.01077088,93870.0,93848.0,1.2914]
[1768780354053,0.06077088,93870.0,93848.0,1.2914]
[1768780354351,0.05011488,93870.0,93848.0,1.2914]
[1768780355045,0.05,93870.0,93849.0,1.29156]
[1768780355251,0.05,93870.0,93850.0,0.09588]
[1768780355946,0.00013026,93869.0,93850.0,0.09588]
[1768780356151,0.010655,93879.0,93852.0,0.214445]
[1768780356350,0.010655,93879.0,93853.0,0.09789692]
[1768780356351,0.060655,93879.0,93853.0,0.09789692]
[1768780356744,0.05,93879.0,93853.0,0.09789692]
[1768780356950,0.010654,93887.0,93855.0,0.11654808]
[1768780357149,9.524e-05,93886.0,93863.0,0.214445]
[1768780357451,0.06074924,93886.0,93864.0,1.38756]
[1768780357649,0.05009524,93886.0,93864.0,1.38756]
[1768780357851,0.03,93886.0,93864.0,1.38756]
[1768780358150,0.010655,93884.0,93864.0,1.38756]
[1768780358344,0.06,93884.0,93864.0,1.38756]
[1768780358948,0.010655,93885.0,93864.0,1.38756]
[1768780359153,0.106528,93889.0,93864.0,1.38756]
[1768780359154,0.010654,93887.0,93864.0,1.38756]
[1768780359456,0.022354,93887.0,93864.0,1.38756]
[1768780359856,0.010655,93884.0,93864.0,1.38756]
[1768780360155,0.010655,93879.0,93865.0,1.2918]
[1768780360350,0.010654,93886.0,93866.0,0.09592]
[1768780360545,0.106528,93889.0,93866.0,0.09592]
[1768780360749,0.09937458,93931.0,93897.0,0.20158952]
[1768780360943,0.01065,93929.0,93902.0,0.09183682]
[1768780361252,0.01065,93929.0,93904.0,0.09183682]
[1768780361253,0.05,93929.0,93904.0,0.09183682]
[1768780361457,0.05,93929.0,93903.0,0.202448]
[1768780361458,0.09937458,93951.0,93913.0,0.09183682]
[1768780361755,0.0301427,93950.0,93922.0,0.09183682]
[1768780361952,0.0301427,93949.0,93926.0,0.01065]
[1768780362152,0.0801427,93949.0,93933.0,0.10248582]
[1768780362353,0.09937458,93969.0,93935.0,0.010649]
[1768780362656,0.05,93969.0,93944.0,0.10248482]
[1768780362853,0.05,93969.0,93947.0,0.09183682]
[1768780363045,0.05,93969.0,93949.0,0.09183682]
[1768780363244,0.05,93969.0,93948.0,0.09588]
[1768780363245,0.03,93969.0,93956.0,0.010646]
[1768780363462,0.03,93969.0,93957.0,0.09183682]
[1768780363753,0.03,93969.0,93949.0,0.106528]
[1768780363754,0.05,93969.0,93949.0,0.21296023]
[1768780363954,0.14937458,93969.0,93951.0,0.09588]
[1768780364156,0.14937458,93969.0,93954.0,0.00015972]
[1768780364549,0.14937458,93969.0,93955.0,0.106528]
[1768780365359,0.14937458,93969.0,93945.0,0.09588]
[1768780365755,0.14937458,93969.0,93945.0,0.106528]
[1768780366055,0.010646,93964.0,93932.0,0.010649]
[1768780366360,0.010646,93964.0,93900.0,0.13212991]
[1768780366361,0.09937458,93950.0,93929.0,0.010649]
[1768780366557,0.14588,93950.0,93929.0,0.010649]
[1768780366854,0.14588,93950.0,93924.0,0.11708166]
[1768780367044,0.03,93950.0,93933.0,0.010649]
[1768780367361,0.03,93950.0,93925.0,0.22714001]
[1768780367655,0.03,93950.0,93927.0,0.01065]
[1768780368055,0.09588,93949.0,93930.0,0.010649]
[1768780368362,0.06,93949.0,93927.0,0.09183682]
[1768780368557,0.06,93949.0,93933.0,0.09183682]
[1768780368753,0.07,93959.0,93933.0,0.09183682]
[1768780368958,0.09588,93958.0,93933.0,0.09183682]
[1768780369154,0.09588,93958.0,93865.0,0.1023]
[1768780369155,0.11002158,93955.0,93923.0,0.09183682]
[1768780369356,0.11002158,93955.0,93910.0,0.12147691]
[1768780369357,0.09937458,93951.0,93918.0,0.106531]
[1768780369667,0.05,93951.0,93927.0,0.10644412]
[1768780369958,0.09937458,93947.0,93915.0,0.09183682]
[1768780370161,0.14937458,93947.0,93915.0,0.10373666]
[1768780370362,0.14937458,93947.0,93919.0,0.10645205]
[1768780370561,0.14937458,93947.0,93915.0,0.10373666]
[1768780370562,0.010648,93945.0,93915.0,0.09183682]
[1768780370763,0.010648,93945.0,93897.0,0.09588]
[1768780370764,0.09937458,93935.0,93897.0,0.09588]
[1768780370960,0.09937458,93933.0,93901.0,0.010653]
[1768780371166,0.09937458,93932.0,93901.0,0.010653]
[1768780371365,0.14937458,93932.0,93901.0,0.010653]
[1768780371555,0.11002358,93931.0,93902.0,0.10647812]
[1768780371758,0.12147691,93920.0,93902.0,0.10647812]
[1768780371960,0.09588,93919.0,93894.0,0.09183682]
[1768780372156,0.14588,93919.0,93899.0,0.010653]
[1768780372369,0.14588,93919.0,93892.0,0.1097527]
[1768780372370,0.03,93919.0,93904.0,0.010652]
[1768780372566,0.09584,93930.0,93903.0,0.09183682]
[1768780372767,0.09584,93929.0,93899.0,0.106493]
[1768780372964,0.14584,93929.0,93905.0,0.10648379]
[1768780373266,0.05,93929.0,93902.0,0.21289898]
[1768780373464,0.010648,93947.0,93912.0,0.09831092]
[1768780373661,0.18811768,93946.0,93915.0,0.010651]
[1768780373961,0.18811768,93946.0,93912.0,0.19419092]
[1768780373962,0.10288568,93945.0,93913.0,0.10648039]
[1768780374170,0.09223768,93944.0,93912.0,0.19419092]
[1768780374363,0.09223768,93939.0,93912.0,0.09588]
[1768780374568,0.09223768,93937.0,93913.0,0.10646169]
[1768780374870,0.09223768,93935.0,93904.0,0.010652]
[1768780375163,0.05,93935.0,93904.0,0.09831092]
[1768780375363,0.09584,93934.0,93910.0,0.010652]
[1768780375664,0.09584,93933.0,93910.0,0.12147691]
[1768780375967,0.14584,93933.0,93911.0,0.10646792]
[1768780376169,0.14584,93933.0,93915.0,0.010651]
[1768780376463,0.14223768,93933.0,93902.0,0.09831092]
[1768780376662,0.09584,93932.0,93916.0,0.10647189]
[1768780376870,0.14584,93932.0,93904.0,0.09831092]
[1768780377072,0.02968632,93931.0,93904.0,0.09831092]
[1768780377367,0.09223768,93929.0,93905.0,0.10646906]
[1768780377672,0.01065,93925.0,93901.0,0.09588]
[1768780377965,0.01065,93925.0,93818.0,0.053313]
[1768780377966,0.010651,93916.0,93889.0,0.010654]
[1768780378170,0.18807768,93915.0,93892.0,0.010654]
[1768780378362,0.23807768,93915.0,93892.0,0.010654]
[1768780378670,0.09584,93915.0,93897.0,0.010653]
[1768780378859,0.09223768,93938.0,93909.0,0.010652]
[1768780379067,0.12553792,93937.0,93908.0,0.010652]
[1768780379366,0.02969792,93936.0,93908.0,0.010652]
[1768780379566,0.07969792,93936.0,93913.0,0.00015972]
[1768780379778,0.09588,93935.0,93918.0,0.010651]
[1768780380065,0.010649,93934.0,93913.0,0.00015972]
[1768780380274,0.060649,93934.0,93913.0,0.00015972]
[1768780380461,0.05,93934.0,93908.0,0.010652]
[1768780380662,0.02971125,93933.0,93905.0,0.010652]
[1768780380858,0.02971125,93932.0,93905.0,0.010652]
[1768780381062,0.12147691,93930.0,93896.0,0.09588]
[1768780381268,0.02971863,93929.0,93896.0,0.09588]
[1768780381471,0.02971863,93929.0,93885.0,0.09588]
[1768780381472,0.21371459,93910.0,93885.0,0.09588]
[1768780381769,0.09223768,93909.0,93880.0,0.09588]
[1768780381970,0.09223768,93909.0,93873.0,0.10647472]
[1768780381971,0.09223768,93907.0,93879.0,0.01143748]
[1768780382176,0.010652,93905.0,93877.0,0.010655]
[1768780382473,0.05,93905.0,93880.0,0.10650251]
[1768780382769,0.20204764,93930.0,93893.0,0.09831092]
[1768780382967,0.12560174,93929.0,93899.0,0.09831092]
[1768780383163,0.12195942,93928.0,93900.0,0.010653]
[1768780383363,0.12195942,93928.0,93899.0,0.09831092]
[1768780383364,0.02972174,93927.0,93902.0,0.010653]
[1768780383568,0.02972174,93927.0,93901.0,0.09831092]
[1768780383569,0.07972174,93927.0,93901.0,0.09831092]
[1768780383772,0.12560174,93926.0,93903.0,0.09831092]
[1768780383968,0.21371459,93913.0,93894.0,0.10648323]
[1768780384165,0.09223768,93907.0,93880.0,0.010655]
[1768780384364,0.09588,93906.0,93880.0,0.010655]
[1768780384575,0.14588,93906.0,93874.0,0.09831092]
[1768780384771,0.14588,93906.0,93875.0,0.09831092]
[1768780385065,0.14588,93906.0,93882.0,0.010655]
[1768780385273,0.14354624,93906.0,93882.0,0.010655]
[1768780385674,0.05,93906.0,93882.0,0.010655]
[1768780385866,0.09588,93905.0,93882.0,0.010655]
[1768780386066,0.09588,93905.0,93876.0,0.01169465]
[1768780386067,0.14588,93905.0,93876.0,0.01169465]
[1768780386269,0.010652,93904.0,93877.0,0.010655]
[1768780386464,0.05,93904.0,93877.0,0.010655]
[1768780386665,0.05,93904.0,93888.0,0.010654]
[1768780386865,0.05,93904.0,93885.0,0.010655]
[1768780387363,0.09223768,93918.0,93891.0,0.010654]
[1768780387566,0.04043348,93917.0,93881.0,0.09831092]
[1768780387777,0.12566248,93916.0,93881.0,0.09831092]
[1768780388072,0.02978248,93915.0,93887.0,0.010654]
[1768780388268,0.02978248,93914.0,93890.0,0.010654]
[1768780388470,0.02978248,93914.0,93881.0,0.09831092]
[1768780388471,0.07978248,93914.0,93885.0,0.09831092]
[1768780388670,0.12566248,93913.0,93887.0,0.010654]
[1768780388976,0.02978248,93912.0,93887.0,0.010654]
[1768780389170,0.07978248,93912.0,93885.0,0.09831092]
[1768780389364,0.02978248,93911.0,93885.0,0.09831092]
[1768780389574,0.21735691,93910.0,93886.0,0.10649627]
[1768780389770,0.02978248,93909.0,93886.0,0.10649627]
[1768780390081,0.02978248,93909.0,93881.0,0.010655]
[1768780390082,0.010652,93908.0,93881.0,0.010655]
[1768780390373,0.09588,93907.0,93880.0,0.09831092]
[1768780390578,0.14588,93907.0,93880.0,0.09831092]
[1768780390762,0.14588,93907.0,93889.0,0.010654]
[1768780391167,0.14588,93907.0,93887.0,0.010654]
[1768780391772,0.14588,93907.0,93893.0,0.010654]
[1768780392072,0.14588,93907.0,93890.0,0.010654]
[1768780392782,0.05,93907.0,93890.0,0.010654]
[1768780393166,0.05,93907.0,93880.0,0.09831092]
[1768780393167,0.05,93907.0,93894.0,0.10648256]
[1768780393468,0.05,93907.0,93888.0,0.09831092]
[1768780393469,0.010651,93915.0,93888.0,0.10896492]
[1768780393675,0.010652,93908.0,93887.0,0.09588]
[1768780393872,0.06,93908.0,93887.0,0.09588]
[1768780394072,0.06,93908.0,93889.0,0.10648256]
[1768780394579,0.06,93908.0,93880.0,0.09588]
[1768780394777,0.06,93908.0,93884.0,0.010655]
[1768780394982,0.06,93908.0,93881.0,0.20479348]
[1768780395172,0.09588,93907.0,93883.0,0.09831092]
[1768780395373,0.10588,93907.0,93890.0,0.010654]
[1768780395678,0.01,93907.0,93892.0,0.010654]
[1768780395887,0.10288768,93930.0,93902.0,0.010653]
[1768780396179,0.12569018,93929.0,93898.0,0.09831092]
[1768780396375,0.02981018,93928.0,93898.0,0.09831092]
[1768780396680,0.02981018,93928.0,93893.0,0.11458806]
[1768780396681,0.00015972,93925.0,93911.0,0.010652]
[1768780396981,0.09223768,93948.0,93916.0,0.09831092]
[1768780397182,0.09223768,93948.0,93912.0,0.10647812]
[1768780397183,0.09588,93947.0,93920.0,0.09831092]
[1768780397384,0.14588,93947.0,93920.0,0.09831092]
[1768780397678,0.05,93947.0,93924.0,0.01065]
[1768780397985,0.05,93947.0,93927.0,0.01065]
[1768780398185,0.04351744,93945.0,93927.0,0.01065]
[1768780398385,0.10351744,93945.0,93926.0,0.00015972]
[1768780398583,0.10351744,93945.0,93929.0,0.01065]
[1768780398779,0.010646,93960.0,93926.0,0.09847064]
[1768780398780,0.09588,93952.0,93931.0,0.09831092]
[1768780399081,0.05,93952.0,93934.0,0.010649]
[1768780399481,0.05,93952.0,93931.0,0.09831092]
[1768780399681,0.09223768,93950.0,93929.0,0.09588]
[1768780399882,0.18575512,93950.0,93929.0,0.09588]
[1768780400080,0.010648,93942.0,93912.0,0.09831092]
[1768780400384,0.09223768,93924.0,93900.0,0.09588]
[1768780400575,0.14223768,93924.0,93900.0,0.09588]
[1768780400778,0.09223768,93923.0,93901.0,0.10645149]
[1768780400978,0.14223768,93923.0,93901.0,0.10645149]
[1768780401170,0.010651,93916.0,93891.0,0.09588]
[1768780401373,0.05831625,93916.0,93890.0,0.09588]
[1768780401572,0.09588,93915.0,93891.0,0.10648266]
[1768780401772,0.09223768,93910.0,93890.0,0.09588]
[1768780401976,0.18575512,93910.0,93883.0,0.09588]
[1768780402188,0.14223768,93910.0,93886.0,0.010654]
[1768780402372,0.04351744,93910.0,93884.0,0.09429332]
[1768780402579,0.09760684,93920.0,93899.0,0.010653]
[1768780402778,0.13939744,93919.0,93895.0,0.010653]
[1768780402979,0.05,93919.0,93892.0,0.010654]
[1768780403179,0.09588,93918.0,93892.0,0.010654]
[1768780403379,0.14588,93918.0,93893.0,0.10648833]
[1768780403582,0.14354166,93918.0,93894.0,0.010653]
[1768780403791,0.14354166,93918.0,93893.0,0.10648833]
[1768780404093,0.14354166,93918.0,93894.0,0.010653]
[1768780404281,0.05,93918.0,93894.0,0.010653]
[1768780404485,0.05,93918.0,93900.0,0.12147691]
[1768780404682,0.05,93918.0,93898.0,0.010653]
[1768780404879,0.05,93918.0,93896.0,0.09588]
[1768780405082,0.09351744,93918.0,93896.0,0.09588]
[1768780405378,0.05,93918.0,93900.0,0.010653]
[1768780405693,0.09351744,93918.0,93900.0,0.010653]
[1768780405893,0.04351744,93916.0,93896.0,0.09588]
[1768780406083,0.05,93916.0,93896.0,0.106533]
[1768780406289,0.05,93916.0,93898.0,0.010653]
[1768780406790,0.04351744,93915.0,93896.0,0.09588]
[1768780406992,0.05,93915.0,93899.0,0.10648946]
[1768780407287,0.05,93915.0,93900.0,0.09429332]
[1768780407495,0.05,93915.0,93896.0,0.09588]
[1768780407684,0.05,93915.0,93897.0,0.10649003]
[1768780407878,0.010651,93912.0,93897.0,0.10649003]
[1768780408077,0.060651,93912.0,93897.0,0.10649003]
[1768780408296,0.05,93912.0,93897.0,0.10649003]
[1768780408789,0.05,93912.0,93896.0,0.09588]
[1768780408790,0.010652,93907.0,93888.0,0.09588]
[1768780408995,0.060652,93907.0,93888.0,0.09588]
[1768780409186,0.04351744,93906.0,93888.0,0.09588]
[1768780409487,0.04351744,93905.0,93888.0,0.09588]
[1768780409693,0.09118219,93905.0,93888.0,0.09588]
[1768780409902,0.04118219,93904.0,93888.0,0.09588]
[1768780410093,0.05118219,93904.0,93888.0,0.09588]
[1768780410688,0.05118219,93904.0,93871.0,0.11766992]
[1768780410689,0.13878903,93897.0,93877.0,0.09588]
[1768780410882,0.15760684,93897.0,93877.0,0.09588]
[1768780411083,0.15760684,93897.0,93877.0,0.2023808]
[1768780411282,0.15760684,93897.0,93877.0,0.2130358]
[1768780411487,0.15760684,93897.0,93879.0,0.010655]
[1768780411687,0.15526801,93897.0,93879.0,0.010655]
[1768780411893,0.04118219,93896.0,93877.0,0.09588]
[1768780412089,0.01,93896.0,93880.0,0.10651101]
[1768780412393,0.01,93896.0,93877.0,0.09588]
[1768780412792,0.01,93896.0,93878.0,0.10651158]
[1768780412979,0.01,93896.0,93870.0,0.09429332]
[1768780412980,0.15801784,93887.0,93850.0,0.09429332]
[1768780413184,0.11683565,93886.0,93853.0,0.09429332]
[1768780413383,0.04118219,93869.0,93852.0,0.11103377]
[1768780413592,0.05,93869.0,93850.0,0.01157144]
[1768780413779,0.04118219,93866.0,93843.0,0.20239101]
[1768780413983,0.04118219,93866.0,93843.0,0.09588]
[1768780413984,0.09770696,93865.0,93843.0,0.09588]
[1768780414289,0.04118219,93862.0,93847.0,0.010659]
[1768780414489,0.09118219,93862.0,93847.0,0.010659]
[1768780414686,0.05,93862.0,93850.0,0.010658]
[1768780414992,0.05,93862.0,93844.0,0.1172069]
[1768780415187,0.00010012,93865.0,93844.0,0.1065479]
[1768780415393,0.04025992,93865.0,93852.0,0.010658]
[1768780415592,0.04025992,93865.0,93850.0,0.01137311]
[1768780415795,0.04025992,93865.0,93843.0,0.106539]
[1768780415987,0.04025992,93865.0,93843.0,0.09588]
[1768780416195,0.00025992,93865.0,93850.0,0.010658]
[1768780416396,0.00025992,93865.0,93845.0,0.010659]
[1768780417197,0.00025992,93865.0,93848.0,0.010659]
[1768780417494,0.00025992,93865.0,93845.0,0.01126468]
[1768780417696,0.04792418,93865.0,93843.0,0.30774312]
[1768780417885,0.09588,93873.0,93849.0,0.10654733]
[1768780418081,0.08588,93873.0,93847.0,0.0001598]
[1768780418281,0.09353365,93872.0,93847.0,0.0001598]
[1768780418491,0.09353365,93871.0,93847.0,0.0001598]
[1768780418800,0.14353365,93871.0,93847.0,0.0001598]
[1768780419391,0.09353365,93870.0,93847.0,0.0001598]
[1768780419590,0.09353365,93869.0,93847.0,0.0001598]
[1768780419899,0.09119432,93868.0,93843.0,0.09588]
[1768780420097,0.05,93868.0,93843.0,0.10735857]
[1768780420392,0.060657,93868.0,93844.0,0.10654279]
[1768780420700,0.17711122,93868.0,93844.0,0.10654279]
[1768780421082,0.16645422,93868.0,93844.0,0.10654279]
[1768780421493,0.11645422,93865.0,93844.0,0.10654279]
[1768780421888,0.09353365,93864.0,93844.0,0.10654279]
[1768780422191,0.09353365,93863.0,93844.0,0.10654279]
[1768780422388,0.010655,93880.0,93855.0,0.2113576]
[1768780422593,0.09353365,93879.0,93852.0,0.09592]
[1768780422895,0.09353365,93878.0,93852.0,0.106578]
[1768780423094,0.09353365,93877.0,93852.0,0.106578]
[1768780423294,0.09353365,93876.0,93852.0,0.106578]
[1768780423496,0.20998787,93867.0,93843.0,0.01147857]
[1768780423690,0.20998787,93867.0,93830.0,0.09592]
[1768780423691,0.09353365,93863.0,93830.0,0.09592]
[1768780424001,0.09592,93866.0,93843.0,0.09181467]
[1768780424200,0.09353365,93879.0,93853.0,0.010658]
[1768780424506,0.09592,93878.0,93853.0,0.010658]
[1768780424798,0.09353365,93876.0,93843.0,0.2113576]
[1768780424991,0.09592,93875.0,93850.0,0.2113576]
[1768780425295,0.09592,93881.0,93854.0,0.2113576]
[1768780425599,0.14592,93881.0,93856.0,0.010658]
[1768780425796,0.14592,93881.0,93855.0,0.20246222]
[1768780425994,0.09353365,93880.0,93855.0,0.09592]
[1768780426204,0.09353365,93879.0,93856.0,0.10654222]
[1768780426390,0.09353365,93877.0,93856.0,0.10654222]
[1768780426590,0.09353365,93875.0,93855.0,0.09592]
[1768780426792,0.09353365,93873.0,93855.0,0.09592]
[1768780426995,0.09353365,93872.0,93855.0,0.09592]
[1768780427191,0.14353365,93872.0,93855.0,0.09592]
[1768780427391,0.09353365,93872.0,93848.0,0.09592]
[1768780427690,0.09353365,93880.0,93852.0,0.010658]
[1768780427998,0.15119382,93880.0,93852.0,0.010658]
[1768780428197,0.15119382,93880.0,93861.0,0.010657]
[1768780428388,0.09592,93879.0,93857.0,0.010658]
[1768780428585,0.09592,93878.0,93857.0,0.010658]
[1768780428899,0.09592,93878.0,93848.0,0.3072776]
[1768780428900,0.14592,93878.0,93849.0,0.010659]
[1768780429102,0.156575,93878.0,93849.0,0.010659]
[1768780429290,0.14592,93878.0,93849.0,0.11719384]
[1768780429800,0.14592,93878.0,93852.0,0.010658]
[1768780430000,0.09353365,93877.0,93852.0,0.010658]
[1768780430201,0.14353365,93877.0,93852.0,0.010658]
[1768780430395,0.14353365,93877.0,93853.0,0.10653598]
[1768780430791,0.09353365,93876.0,93853.0,0.10653598]
[1768780430992,0.09353365,93875.0,93853.0,0.10653598]
[1768780431299,0.14353365,93875.0,93853.0,0.10653598]
[1768780431894,0.09353365,93874.0,93853.0,0.10653598]
[1768780432200,0.10353365,93874.0,93853.0,0.10653598]
[1768780432601,0.10353365,93874.0,93853.0,0.11719398]
[1768780432998,0.10353365,93874.0,93855.0,0.010658]
[1768780433195,0.01,93874.0,93857.0,0.010658]
[1768780433390,0.09036179,93872.0,93816.0,0.11230693]
[1768780433595,0.010659,93843.0,93831.0,0.09592]
[1768780433788,0.010659,93843.0,93808.0,0.11230693]
[1768780433789,0.08803149,93842.0,93811.0,0.010663]
[1768780433995,0.05,93842.0,93817.0,0.10653655]
[1768780434196,0.05,93842.0,93818.0,0.09592]
[1768780434498,0.05,93842.0,93812.0,0.010663]
[1768780434499,0.03308145,93809.0,93778.0,0.01167353]
[1768780434703,0.03569493,93802.0,93781.0,0.09592]